bitfinex-derivatives/quotes_SOLF0:USTF0_20251209
["timestamp","ask_amount","ask_price","bid_price","bid_amount"]
[1765280619098,19.76902427,132.64,132.63,0.05391361]
[1765280620513,19.76902427,132.64,132.63,3.25391361]
[1765280620711,14.44303256,132.64,132.63,0.05391361]
[1765280629319,5.72763256,132.64,132.63,3.25391361]
[1765280632315,1.95,132.65,132.63,3.25391361]
[1765280634215,0.05328704,132.66,132.63,3.25391361]
[1765280634425,2.00328704,132.66,132.63,3.25391361]
[1765280634620,5.73825045,132.65,132.63,3.25391361]
[1765280634920,2.00328704,132.66,132.63,3.25391361]
[1765280635113,5.73825005,132.65,132.63,3.25391361]
[1765280635421,2.00328704,132.66,132.63,3.25391361]
[1765280635619,5.73724234,132.65,132.64,10.0453]
[1765280636321,2.00328704,132.66,132.64,10.0453]
[1765280642431,0.05328704,132.66,132.65,3.18]
[1765280642628,5.78673896,132.66,132.65,9.9649]
[1765280643926,0.05328704,132.66,132.65,9.9649]
[1765280655040,2.09057058,132.66,132.63,6.83931361]
[1765280655240,2.09057058,132.66,132.63,0.05391361]
[1765280655241,1.95,132.65,132.63,0.05391361]
[1765280656544,1.95,132.65,132.63,3.31391361]
[1765280666751,6.83768704,132.66,132.64,3.26]
[1765280666752,0.05328704,132.66,132.64,3.26]
[1765280667953,0.05328704,132.66,132.65,10.0449]
[1765280686270,0.00328704,132.66,132.65,10.0449]
[1765280700274,1.95,132.7,132.68,3.26]
[1765280700581,2.0,132.71,132.68,3.26]
[1765280700780,2.0,132.73,132.68,3.26]
[1765280700977,7.70395119,132.72,132.68,3.26]
[1765280701171,5.70395119,132.71,132.68,3.26]
[1765280701372,0.04793396,132.71,132.7,3.26]
[1765280701569,7.75190913,132.71,132.69,6.83312019]
[1765280701883,2.04793396,132.71,132.7,3.26]
[1765280702079,7.75189496,132.71,132.7,3.26]
[1765280704773,5.75189496,132.71,132.7,10.0423]
[1765280704970,5.75189496,132.71,132.7,3.26]
[1765280705169,7.74189496,132.71,132.7,3.26]
[1765280706978,5.75189496,132.71,132.7,3.26]
[1765280709684,7.74189496,132.71,132.7,3.26]
[1765280712090,13.24944069,132.71,132.7,3.26]
[1765280712981,7.74189496,132.71,132.7,3.26]
[1765280714775,7.74189496,132.71,132.69,6.83302019]
[1765280714978,2.03793396,132.71,132.69,10.04302019]
[1765280715975,2.03793396,132.71,132.7,3.21]
[1765280716176,7.75286075,132.71,132.7,3.21]
[1765280718188,5.76286075,132.71,132.7,3.21]
[1765280718687,7.75286075,132.71,132.7,3.21]
[1765280719493,5.76286075,132.71,132.7,3.21]
[1765280720792,7.75286075,132.71,132.7,3.21]
[1765280725890,7.75286075,132.71,132.7,9.9923]
[1765280725891,5.76286075,132.71,132.7,9.9923]
[1765280726085,1.99,132.75,132.71,3.21]
[1765280726283,7.69319758,132.74,132.71,3.21]
[1765280726495,1.99,132.74,132.71,3.21]
[1765280727194,2.04332666,132.74,132.71,3.264409]
[1765280727493,2.04332666,132.74,132.73,3.21]
[1765280727698,7.76345151,132.74,132.73,3.21]
[1765280727994,5.77345151,132.74,132.73,3.21]
[1765280728205,0.05332666,132.74,132.73,9.9908]
[1765280728398,7.42357122,132.77,132.74,3.39]
[1765280728694,5.71765726,132.76,132.74,3.39]
[1765280728890,1.99,132.77,132.74,3.39]
[1765280729097,5.71765664,132.76,132.74,3.39]
[1765280729302,1.99,132.77,132.74,3.39]
[1765280729607,0.05699247,132.76,132.74,10.22161869]
[1765280729789,0.05699247,132.76,132.75,3.39]
[1765280732503,0.05699247,132.76,132.75,10.1697]
[1765280732794,1.99,132.82,132.77,3.39]
[1765280733001,2.05,132.8,132.77,3.39]
[1765280733300,2.05,132.81,132.78,3.39]
[1765280733693,2.10700088,132.81,132.78,3.44128816]
[1765280735102,2.10700088,132.81,132.79,3.39]
[1765280737401,2.10700088,132.81,132.8,3.39]
[1765280737898,2.10700088,132.81,132.79,10.1677]
[1765280738202,2.10700088,132.81,132.78,0.05128816]
[1765280738793,2.05,132.79,132.78,0.05128816]
[1765280740900,3.55,132.79,132.78,0.05128816]
[1765280741799,2.05,132.79,132.78,0.05128816]
[1765280745797,2.05,132.8,132.78,3.44128816]
[1765280747210,2.10700088,132.81,132.78,3.44128816]
[1765280748512,2.10700088,132.81,132.78,10.21928816]
[1765280749016,2.10700088,132.81,132.79,3.39]
[1765280749209,2.10700088,132.81,132.79,10.1676]
[1765280749518,0.05700088,132.81,132.8,3.39]
[1765280750309,2.10700088,132.81,132.8,3.39]
[1765280750816,2.10700088,132.81,132.79,10.1676]
[1765280751617,2.10700088,132.81,132.8,3.39]
[1765280752517,0.05700088,132.81,132.8,3.39]
[1765280757222,2.10700088,132.81,132.78,3.44128816]
[1765280757419,2.05,132.79,132.78,0.05128816]
[1765280758525,8.8277,132.79,132.78,0.05128816]
[1765280760132,6.7772,132.8,132.78,3.36128816]
[1765280760329,8.8272,132.8,132.78,3.36128816]
[1765280761135,2.05,132.8,132.78,3.36128816]
[1765280761634,2.05,132.8,132.78,0.05128816]
[1765280762633,8.8272,132.8,132.78,0.05128816]
[1765280763025,2.05,132.79,132.78,0.05128816]
[1765280763226,8.8277,132.79,132.78,0.05128816]
[1765280764041,10.86231107,132.79,132.78,0.05128816]
[1765280765544,8.8277,132.79,132.78,0.05128816]
[1765280766332,2.05,132.79,132.78,0.05128816]
[1765280766735,2.10700088,132.81,132.78,3.36128816]
[1765280766932,0.05700088,132.81,132.78,3.36128816]
[1765280768033,0.05700088,132.81,132.8,3.31]
[1765280771847,0.05700088,132.81,132.8,10.0872]
[1765280772941,6.7751,132.85,132.82,3.39]
[1765280773150,15.85740814,132.89,132.82,3.39]
[1765280773447,2.05,132.87,132.82,3.39]
[1765280773643,2.05,132.87,132.84,3.39]
[1765280774045,2.09813097,132.87,132.84,3.44399648]
[1765280774354,4.08461107,132.86,132.84,0.05399648]
[1765280774645,2.05,132.85,132.84,0.05399648]
[1765280777149,7.71305629,132.85,132.84,0.05399648]
[1765280777345,2.0,132.83,132.78,3.39]
[1765280777539,2.0,132.82,132.78,3.39]
[1765280777747,2.0,132.81,132.76,3.39]
[1765280777948,2.0,132.8,132.76,3.39]
[1765280778347,0.05358955,132.79,132.77,3.4444859]
[1765280778846,2.05358955,132.79,132.77,3.4444859]
[1765280780356,2.05358955,132.79,132.77,0.0544859]
[1765280783150,2.05358955,132.79,132.77,3.4444859]
[1765280783352,2.05358955,132.79,132.77,0.0544859]
[1765280784042,8.83138955,132.79,132.77,0.0544859]
[1765280784248,2.0,132.78,132.77,0.0544859]
[1765280800473,8.7782,132.78,132.77,0.0044859]
[1765280800765,1.95,132.77,132.69,3.35]
[1765280800959,1.95,132.76,132.69,3.35]
[1765280801657,2.00688148,132.74,132.71,3.40054928]
[1765280802075,0.05688148,132.74,132.72,3.35]
[1765280803470,0.05688148,132.74,132.73,6.7808]
[1765280803771,0.05688148,132.74,132.73,10.1308]
[1765280804469,2.00688148,132.74,132.73,6.7808]
[1765280804971,0.05688148,132.74,132.73,10.1308]
[1765280806170,0.05688148,132.74,132.73,3.35]
[1765280806770,2.00688148,132.74,132.71,3.40054928]
[1765280808563,2.00688148,132.74,132.71,10.18214928]
[1765280808765,2.00688148,132.74,132.71,0.05054928]
[1765280809765,1.95,132.72,132.71,0.05054928]
[1765280810177,2.00688148,132.74,132.71,3.40054928]
[1765280811477,2.00688148,132.74,132.71,10.18234928]
[1765280812975,2.00688148,132.74,132.71,3.40054928]
[1765280813873,2.00688148,132.74,132.71,0.05054928]
[1765280814076,8.78728148,132.74,132.71,0.05054928]
[1765280814283,1.95,132.73,132.71,0.05054928]
[1765280821180,0.05688148,132.74,132.71,0.05054928]
[1765280821181,8.7313,132.72,132.71,0.05054928]
[1765280823790,1.95,132.72,132.71,0.05054928]
[1765280825889,0.05688148,132.74,132.71,3.33054928]
[1765280826081,1.98688148,132.74,132.71,3.33054928]
[1765280827575,1.98688148,132.74,132.71,10.11234928]
[1765280827776,1.98688148,132.74,132.72,3.28]
[1765280828994,0.05688148,132.74,132.72,3.28]
[1765280829193,0.05688148,132.74,132.72,10.0608]
[1765280829378,0.05688148,132.74,132.73,3.28]
[1765280829982,0.05688148,132.74,132.73,10.0608]
[1765280833688,0.05688148,132.74,132.73,3.28]
[1765280836096,0.05688148,132.74,132.73,10.0608]
[1765280836502,8.7084,132.78,132.74,3.28]
[1765280836692,8.7084,132.78,132.75,3.28]
[1765280837497,8.76189698,132.78,132.75,3.33653029]
[1765280837695,1.98349698,132.78,132.75,3.33653029]
[1765280838105,1.98349698,132.78,132.75,10.11623029]
[1765280839498,1.98349698,132.78,132.76,3.28]
[1765280846597,7.56014912,132.77,132.75,0.05653029]
[1765280846795,1.93,132.76,132.75,0.05653029]
[1765280847396,7.56021976,132.76,132.75,0.05653029]
[1765280848000,8.76209698,132.78,132.75,3.33653029]
[1765280848400,1.98349698,132.78,132.75,3.33653029]
[1765280849202,0.05349698,132.78,132.77,3.27]
[1765280849399,5.6826766,132.78,132.77,3.27]
[1765280849595,0.05349698,132.78,132.77,3.27]
[1765280852205,0.05349698,132.78,132.77,10.0487]
[1765280854507,65.99,132.81,132.78,3.27]
[1765280855007,1.95,132.8,132.78,3.27]
[1765280855611,2.00464672,132.8,132.78,3.32072724]
[1765280856810,3.98267553,132.79,132.78,0.05072724]
[1765280857108,3.98267553,132.79,132.73,67.31]
[1765280857109,1.95,132.78,132.73,3.27]
[1765280857310,1.95,132.76,132.73,3.27]
[1765280858109,2.00218739,132.76,132.73,3.32194518]
[1765280860111,0.05218739,132.76,132.74,3.27]
[1765280860307,0.05218739,132.76,132.75,5.30267553]
[1765280860508,1.95,132.79,132.76,3.27]
[1765280861412,2.00147891,132.79,132.76,3.32019417]
[1765280861613,2.00147891,132.79,132.77,3.27]
[1765280867118,2.00147891,132.79,132.76,0.05019417]
[1765280867320,1.95,132.78,132.76,0.05019417]
[1765280868021,1.95,132.78,132.76,3.32019417]
[1765280868520,1.95,132.77,132.76,0.05019417]
[1765280870222,8.7283,132.78,132.76,0.05019417]
[1765280870434,1.95,132.78,132.76,0.05019417]
[1765280871521,1.95,132.78,132.76,3.32019417]
[1765280872418,5.62197911,132.77,132.76,3.32019417]
[1765280873428,7.57197911,132.77,132.76,0.05019417]
[1765280874327,1.95,132.78,132.76,3.32019417]
[1765280875329,5.62577893,132.77,132.76,3.32019417]
[1765280876628,1.95,132.78,132.76,3.32019417]
[1765280877341,8.7282,132.78,132.76,3.32019417]
[1765280877545,1.95,132.77,132.76,0.05019417]
[1765280878138,8.7182,132.78,132.76,3.24019417]
[1765280879146,5.58843537,132.77,132.76,3.24019417]
[1765280880848,14.30713537,132.77,132.76,0.05019417]
[1765280881545,1.94,132.74,132.72,3.19]
[1765280881748,1.94,132.74,132.7,3.19]
[1765280882545,0.05627982,132.73,132.71,10.02588243]
[1765280883353,0.05627982,132.73,132.72,3.19]
[1765280891655,0.05627982,132.73,132.71,3.25418243]
[1765280893550,0.05627982,132.73,132.72,3.2]
[1765280898557,0.05627982,132.73,132.72,9.9813]
[1765280907560,0.05627982,132.73,132.72,3.2]
[1765280916468,0.05627982,132.73,132.72,9.9813]
[1765280917869,0.05627982,132.73,132.72,3.2]
[1765280919982,1.99627982,132.73,132.71,10.05598243]
[1765280920161,1.99627982,132.73,132.71,0.05418243]
[1765280920365,8.7213,132.72,132.71,0.05418243]
[1765280920673,19.61624742,132.72,132.71,0.05418243]
[1765280923585,19.61624742,132.72,132.68,3.22]
[1765280923586,1.94,132.7,132.68,3.22]
[1765280924477,8.7712369,132.7,132.68,3.2761258]
[1765280932575,0.0486369,132.7,132.68,3.2761258]
[1765280933277,6.7807,132.74,132.7,3.22]
[1765280934082,8.7707,132.74,132.7,3.22]
[1765280934282,0.05448566,132.73,132.72,3.22]
[1765280939785,64.06,132.75,132.72,3.22]
[1765280939991,6.7797,132.76,132.72,3.22]
[1765280940290,5.65666823,132.75,132.72,3.22]
[1765280940486,2.04,132.77,132.72,3.22]
[1765280940787,13.21264636,132.76,132.72,3.22]
[1765280940988,2.08812386,132.76,132.74,3.27]
[1765280941584,6.7798,132.75,132.74,3.27]
[1765280943885,8.8203,132.74,132.73,0.05688705]
[1765280944793,6.7803,132.74,132.73,3.32688705]
[1765280946598,8.8203,132.74,132.73,0.05688705]
[1765280947995,6.7798,132.75,132.73,3.32688705]
[1765280948199,0.04812386,132.76,132.73,3.32688705]
[1765280948900,2.08812386,132.76,132.73,3.32688705]
[1765280949102,8.86732386,132.76,132.74,3.25]
[1765280949495,6.82732386,132.76,132.74,3.25]
[1765280950099,0.04812386,132.76,132.74,3.25]
[1765280950606,2.09,132.8,132.76,3.25]
[1765280950805,2.09,132.78,132.74,3.25]
[1765280950993,2.09,132.78,132.75,3.25]
[1765280951498,8.9172439,132.78,132.75,3.30736423]
[1765280952299,2.09,132.77,132.75,3.30736423]
[1765280954113,2.09,132.76,132.75,0.05736423]
[1765280954302,7.72276211,132.76,132.75,0.05736423]
[1765280954506,13.20463204,132.76,132.75,0.05736423]
[1765280955506,19.98383204,132.76,132.75,0.05736423]
[1765280959011,14.50196211,132.76,132.75,0.05736423]
[1765280962914,8.8692,132.76,132.75,0.05736423]
[1765280964714,10.90271279,132.76,132.75,0.05736423]
[1765280968517,16.54291731,132.76,132.75,0.05736423]
[1765280969214,64.06,132.77,132.75,3.30736423]
[1765280969427,0.0488439,132.78,132.75,3.30736423]
[1765280970520,0.0488439,132.78,132.77,3.25]
[1765280973323,0.0488439,132.78,132.77,10.0287]
[1765280974421,0.0488439,132.78,132.77,3.25]
[1765280974917,0.0488439,132.78,132.76,3.25]
[1765280976323,2.1488439,132.78,132.76,3.25]
[1765280978426,2.1,132.77,132.75,3.30736423]
[1765280979111,2.1,132.77,132.75,0.05736423]
[1765280979112,8.8789,132.77,132.75,0.05736423]
[1765280980223,2.1,132.76,132.75,0.05736423]
[1765280985127,2.08235669,132.78,132.76,3.25]
[1765280985721,4.18235669,132.78,132.76,3.25]
[1765280986631,10.96065669,132.78,132.76,3.25]
[1765280988830,8.8787,132.77,132.75,3.30736423]
[1765280993623,10.96065669,132.78,132.76,3.25]
[1765280994732,0.0488439,132.78,132.76,6.779]
[1765280994924,0.0488439,132.78,132.77,3.25]
[1765280996529,0.0488439,132.78,132.77,10.0287]
[1765281000137,2.1,132.83,132.8,3.35]
[1765281000334,2.15,132.81,132.76,3.35]
[1765281000937,2.15,132.81,132.79,3.35]
[1765281001245,2.15,132.81,132.79,3.40786959]
[1765281002339,8.9272,132.81,132.79,3.40786959]
[1765281002542,2.15,132.8,132.79,0.05786959]
[1765281003544,8.9272,132.8,132.79,0.05786959]
[1765281004045,2.15,132.82,132.79,3.37786959]
[1765281004442,7.79317492,132.81,132.79,3.37786959]
[1765281004642,2.15,132.8,132.79,0.05786959]
[1765281006645,8.9272,132.8,132.79,0.05786959]
[1765281006958,2.15,132.79,132.74,3.32]
[1765281007148,2.15,132.77,132.74,3.32]
[1765281007349,2.15,132.77,132.72,3.32]
[1765281007850,0.05118821,132.76,132.74,3.32]
[1765281009045,0.05118821,132.76,132.75,10.0997]
[1765281011042,0.05118821,132.76,132.75,12.13321279]
[1765281014559,0.05118821,132.76,132.75,10.0997]
[1765281014856,0.05118821,132.76,132.74,3.32]
[1765281015649,0.05118821,132.76,132.75,3.32]
[1765281017559,0.05118821,132.76,132.75,10.0997]
[1765281023466,0.05118821,132.76,132.75,3.32]
[1765281023857,2.20118821,132.76,132.75,3.32]
[1765281024757,2.20118821,132.76,132.74,3.32]
[1765281027672,2.20118821,132.76,132.75,3.32]
[1765281028774,0.05118821,132.76,132.75,3.32]
[1765281029377,0.05118821,132.76,132.75,10.0997]
[1765281031281,0.05118821,132.76,132.75,3.32]
[1765281031581,2.20118821,132.76,132.74,10.0702]
[1765281032276,2.20118821,132.76,132.75,3.29]
[1765281032475,0.05118821,132.76,132.75,3.29]
[1765281036879,2.20118821,132.76,132.75,3.29]
[1765281037078,0.05118821,132.76,132.75,3.29]
[1765281041982,9.18105415,132.81,132.77,3.29]
[1765281042183,7.79107828,132.8,132.77,3.29]
[1765281042377,2.15,132.82,132.77,3.29]
[1765281042577,7.78998854,132.81,132.77,3.29]
[1765281042784,14.56728854,132.8,132.78,3.29]
[1765281042978,8.9273,132.8,132.78,3.33927467]
[1765281048693,2.15,132.79,132.78,3.33927467]
[1765281049289,8.9273,132.8,132.78,3.33927467]
[1765281052593,6.7777,132.79,132.78,3.33927467]
[1765281052793,8.9277,132.79,132.78,3.33927467]
[1765281052980,8.9277,132.79,132.78,0.04927467]
[1765281055392,8.9277,132.79,132.78,3.33927467]
[1765281057096,8.9277,132.79,132.78,0.04927467]
[1765281057285,14.57180624,132.79,132.78,0.04927467]
[1765281071001,12.42180624,132.79,132.78,3.33927467]
[1765281071603,5.64410624,132.79,132.78,3.33927467]
[1765281071915,8.9172,132.8,132.78,3.33927467]
[1765281073212,8.9167,132.81,132.78,3.33927467]
[1765281073414,5.63737276,132.8,132.78,3.33927467]
[1765281073613,2.14,132.81,132.78,3.33927467]
[1765281073815,7.77737276,132.8,132.78,3.33927467]
[1765281074115,2.14,132.8,132.78,3.33927467]
[1765281074514,8.9172,132.8,132.78,3.33927467]
[1765281075016,72.9366,132.82,132.78,3.33927467]
[1765281075216,7.77732724,132.81,132.78,3.33927467]
[1765281075418,5.63732724,132.8,132.78,3.33927467]
[1765281075618,2.14,132.81,132.78,3.33927467]
[1765281075819,5.63698684,132.8,132.78,3.33927467]
[1765281076015,2.14,132.81,132.78,3.33927467]
[1765281076317,5.63686634,132.8,132.78,3.33927467]
[1765281076517,8.9167,132.81,132.78,3.33927467]
[1765281076714,5.63679931,132.8,132.78,3.33927467]
[1765281076921,2.14,132.8,132.78,3.33927467]
[1765281077418,8.9172,132.8,132.78,3.33927467]
[1765281079418,2.14,132.8,132.78,3.33927467]
[1765281084927,2.14,132.8,132.79,3.29]
[1765281085123,7.77905616,132.8,132.79,3.29]
[1765281085525,7.77905616,132.8,132.78,0.04927467]
[1765281085832,2.14,132.8,132.78,3.33927467]
[1765281092427,6.7767,132.81,132.78,3.33927467]
[1765281092620,5.63210933,132.8,132.78,3.33927467]
[1765281092820,8.9267,132.81,132.78,3.33927467]
[1765281093026,5.63210933,132.8,132.78,3.33927467]
[1765281093323,8.9267,132.81,132.78,3.33927467]
[1765281093523,7.78200838,132.8,132.78,3.33927467]
[1765281093723,2.15,132.8,132.78,3.33927467]
[1765281100634,8.9267,132.81,132.78,3.33927467]
[1765281100936,7.7815238,132.8,132.78,3.33927467]
[1765281101130,2.15,132.8,132.78,3.33927467]
[1765281102134,6.7767,132.81,132.79,3.35]
[1765281102326,5.63147349,132.8,132.79,3.35]
[1765281102531,8.9267,132.81,132.79,3.35]
[1765281102734,2.15,132.8,132.79,3.35]
[1765281108738,6.7767,132.81,132.79,3.35]
[1765281108930,8.9267,132.81,132.79,3.35]
[1765281110547,2.15,132.8,132.79,3.35]
[1765281110846,2.15,132.79,132.78,0.04927467]
[1765281111148,9.81378338,132.79,132.78,0.04927467]
[1765281111938,9.81378338,132.79,132.78,3.39927467]
[1765281112146,7.66378338,132.79,132.78,3.39927467]
[1765281112348,9.81378338,132.79,132.78,3.39927467]
[1765281113049,5.63170009,132.79,132.78,3.39927467]
[1765281113348,7.78170009,132.79,132.78,0.04927467]
[1765281113548,7.78170009,132.79,132.78,3.39927467]
[1765281115443,5.63170009,132.79,132.78,3.39927467]
[1765281117449,8.9272,132.8,132.78,3.39927467]
[1765281117848,2.15,132.8,132.78,3.39927467]
[1765281123554,8.9168,132.81,132.78,3.39927467]
[1765281123752,5.62247296,132.8,132.78,3.39927467]
[1765281123948,8.9168,132.81,132.78,3.39927467]
[1765281124146,5.62247296,132.8,132.78,3.39927467]
[1765281124348,8.9168,132.81,132.78,10.17737467]
[1765281124548,5.62239029,132.8,132.79,3.34]
[1765281125158,5.62239029,132.8,132.79,10.1177]
[1765281125455,64.02,132.82,132.8,3.34]
[1765281125654,64.02,132.82,132.81,10.1167]
[1765281125846,5.62122409,132.82,132.81,10.1167]
[1765281126050,7.76122409,132.82,132.81,3.34]
[1765281126458,2.14,132.82,132.81,3.34]
[1765281126956,13.19051653,132.82,132.79,3.34]
[1765281127159,2.14,132.82,132.79,3.34]
[1765281127550,2.14,132.82,132.8,10.1171]
[1765281127753,7.04247565,132.85,132.8,3.34]
[1765281127950,7.04247565,132.85,132.81,3.3948204]
[1765281127951,13.1889983,132.84,132.81,3.3948204]
[1765281128150,13.1889983,132.83,132.81,3.3948204]
[1765281128455,2.14,132.84,132.81,3.3948204]
[1765281128748,5.56174874,132.83,132.81,3.3948204]
[1765281128954,2.14,132.84,132.81,3.3948204]
[1765281129154,7.70174874,132.83,132.81,3.3948204]
[1765281129355,2.14,132.83,132.81,3.3948204]
[1765281129554,2.14,132.83,132.82,3.34]
[1765281130862,2.14,132.84,132.82,3.34]
[1765281139070,8.9154,132.84,132.82,3.34]
[1765281140573,2.14,132.84,132.82,3.34]
[1765281141268,4.17208329,132.84,132.82,3.34]
[1765281141771,2.14,132.84,132.82,3.34]
[1765281146679,2.14,132.85,132.83,3.34]
[1765281146876,2.14,132.86,132.83,3.34]
[1765281147180,66.05208329,132.88,132.83,3.34]
[1765281147366,2.14,132.87,132.85,3.34]
[1765281150777,64.02,132.89,132.86,3.28]
[1765281151373,66.16,132.89,132.86,3.28]
[1765281151670,2.14,132.88,132.85,3.28]
[1765281151876,2.14,132.87,132.85,3.28]
[1765281152267,2.14,132.87,132.84,3.33792086]
[1765281156591,2.14,132.86,132.84,3.33792086]
[1765281156887,2.14,132.86,132.84,0.05792086]
[1765281157281,2.14,132.86,132.84,3.33792086]
[1765281157680,2.14,132.86,132.84,0.05792086]
[1765281157885,8.0427913,132.85,132.84,0.05792086]
[1765281158584,2.14,132.85,132.84,0.05792086]
[1765281159391,7.95226963,132.85,132.84,0.05792086]
[1765281160192,5.81226963,132.85,132.84,3.33792086]
[1765281160391,2.14,132.87,132.84,3.33792086]
[1765281160692,5.81328051,132.86,132.84,3.33792086]
[1765281160893,2.14,132.87,132.85,3.28]
[1765281161095,5.81328051,132.86,132.85,3.28]
[1765281161596,2.14,132.87,132.85,10.0546]
[1765281162891,2.14,132.87,132.86,3.28]
[1765281163090,2.14,132.88,132.86,3.28]
[1765281163790,2.14,132.88,132.85,10.0546]
[1765281164491,2.14,132.87,132.85,3.28]
[1765281165985,8.9137,132.87,132.85,3.28]
[1765281166685,2.14,132.87,132.85,3.28]
[1765281167389,6.7731,132.88,132.85,3.28]
[1765281167595,2.14,132.89,132.86,3.28]
[1765281167799,2.14,132.89,132.86,3.33298243]
[1765281168493,2.14,132.88,132.86,3.33298243]
[1765281169288,2.14,132.89,132.86,10.10698243]
[1765281169489,8.9121,132.9,132.87,3.28]
[1765281169690,11.13995533,132.89,132.87,3.28]
[1765281169890,8.9121,132.9,132.87,3.28]
[1765281170099,11.13995533,132.89,132.87,3.28]
[1765281170294,2.14,132.89,132.87,3.28]
[1765281176199,8.9128,132.89,132.87,3.28]
[1765281180400,8.9119,132.91,132.87,3.28]
[1765281180597,13.25575975,132.9,132.87,3.28]
[1765281180796,11.11575975,132.89,132.87,3.28]
[1765281181093,2.14,132.9,132.87,3.28]
[1765281181300,2.14,132.9,132.88,3.07]
[1765281187703,2.14,132.89,132.87,6.7736]
[1765281187909,2.14,132.89,132.87,3.37]
[1765281191409,8.9116,132.91,132.88,3.37]
[1765281191615,13.27117799,132.9,132.88,3.42373871]
[1765281191814,11.13117799,132.89,132.88,3.42373871]
[1765281194911,11.13117799,132.89,132.88,10.19683871]
[1765281195118,13.27117799,132.89,132.88,0.05373871]
[1765281196915,13.27117799,132.89,132.88,3.42373871]
[1765281197114,11.13117799,132.89,132.88,3.42373871]
[1765281198017,11.13117799,132.89,132.88,10.19683871]
[1765281200820,9.17221837,132.93,132.89,3.37]
[1765281201022,13.2116163,132.92,132.89,3.37]
[1765281201213,2.14,132.92,132.89,3.37]
[1765281201414,2.14,132.92,132.9,3.37]
[1765281203219,8.9112,132.92,132.88,0.05373871]
[1765281203424,2.14,132.9,132.88,0.05373871]
[1765281203725,2.14,132.9,132.88,3.42373871]
[1765281203922,2.14,132.9,132.88,0.05373871]
[1765281205118,2.14,132.9,132.88,3.42373871]
[1765281205722,2.14,132.92,132.88,3.42373871]
[1765281205922,13.25683099,132.91,132.88,3.42373871]
[1765281206119,5.59463536,132.9,132.88,3.42373871]
[1765281206426,2.14,132.92,132.88,3.42373871]
[1765281206623,13.25792749,132.91,132.88,3.42373871]
[1765281206833,5.59518684,132.9,132.88,3.42373871]
[1765281207127,2.14,132.91,132.88,3.42373871]
[1765281207323,6.7712,132.92,132.88,3.42373871]
[1765281207324,13.23602441,132.9,132.88,3.42373871]
[1765281207528,2.14,132.9,132.88,3.42373871]
[1765281208024,2.14,132.91,132.88,3.42373871]
[1765281208629,2.15,132.93,132.88,3.42373871]
[1765281208929,13.2453342,132.92,132.89,3.36]
[1765281209231,13.2453342,132.91,132.89,3.36]
[1765281209427,2.15,132.91,132.89,3.36]
[1765281212025,5.57310134,132.9,132.89,3.36]
[1765281212225,7.72310134,132.9,132.88,3.41373871]
[1765281212428,2.15,132.9,132.88,3.41373871]
[1765281212829,11.09760326,132.89,132.88,0.05373871]
[1765281213021,13.24760326,132.89,132.88,0.05373871]
[1765281214134,2.15,132.88,132.86,3.36]
[1765281214932,2.15,132.88,132.84,10.1349]
[1765281214933,7.72513682,132.87,132.84,10.1349]
[1765281215129,2.20436456,132.87,132.85,3.36]
[1765281215438,2.20436456,132.87,132.84,10.19191432]
[1765281215733,2.20436456,132.87,132.85,3.36]
[1765281217137,7.5398971,132.86,132.84,0.05701432]
[1765281217336,2.15,132.85,132.84,0.05701432]
[1765281218031,8.11128056,132.85,132.84,0.05701432]
[1765281218432,5.96128056,132.85,132.84,3.41701432]
[1765281219540,5.96128056,132.85,132.84,10.19221432]
[1765281222140,0.05436456,132.87,132.85,3.36]
[1765281222347,5.63562711,132.86,132.85,3.36]
[1765281223742,7.78562711,132.86,132.84,6.83221432]
[1765281224043,2.15,132.86,132.84,3.41701432]
[1765281224636,8.97796456,132.87,132.84,3.41701432]
[1765281226446,2.15,132.86,132.84,3.41701432]